[Event "FIN-ch Seniors 65 2020"]
[Site "Helsinki"]
[Date "2020.09.26"]
[Round "4.1"]
[White "Patola, Eero"]
[Black "Ruotanen, Helge"]
[Result "0-1"]
[ECO "A16"]
[WhiteElo "1826"]
[BlackElo "1946"]
[Annotator "NA"]
[PlyCount "144"]
[EventDate "2020.09.24"]
[EventType "swiss"]
[EventCountry "FIN"]
[SourceTitle "playchess.com"]
[Source "ChessBase"]
[SourceQuality "1"]
[TimeControl "40/5400+30:1800+30"]

1. c4 {[%emt 0:00:50]} g6 {[%emt 0:00:00]} 2. Nc3 {[%emt 0:00:10]} Bg7 {[%emt 0:00:22]} 3. g3 {[%emt 0:00:24]} Nf6 {[%emt 0:00:59]} 4. Bg2 {[%emt 0:00:11]} O-O {[%emt 0:02:11]} 5. e4 {[%emt 0:00:17]} d6 {[%emt 0:01:26]} 6. d3 {[%emt 0:00:59]} c6 {[%emt 0:02:14]} 7. Nge2 {[%emt 0:00:22]} Bg4 {[%emt 0:01:20]} 8. h3 {[%emt 0:00:29]} Be6 {[%emt 0:02:16]} 9. O-O {[%emt 0:00:26]} d5 {[%emt 0:01:06]} 10. cxd5 {[%emt 0:02:13]} cxd5 {[%emt 0:00:10]} 11. e5 {[%emt 0:00:39]} Ne8 {[%emt 0:03:49]} 12. d4 {[%emt 0:00:46]} Nc7 {[%emt 0:00:18]} 13. Nf4 {[%emt 0:02:36]} Nc6 {[%emt 0:00:29]} 14. a3 {[%emt 0:04:26]} Qd7 {[%emt 0:06:26]} 15. b4 {[%emt 0:02:44]} b5 {[%emt 0:01:51]} 16. Be3 {[%emt 0:03:43]} Rac8 {[%emt 0:01:03]} 17. Kh2 {[%emt 0:03:09]} Rfd8 {[%emt 0:01:05]} 18. Nd3 {[%emt 0:05:00]} Nxe5 {[%emt 0:03:41]} 19. Nc5 {[%emt 0:01:54]} Qe8 {[%emt 0:01:34]} 20. Nb7 {[%emt 0:19:06]} Nc4 {[%emt 0:00:41]} 21. Nxd8 {[%emt 0:01:19]} Qxd8 {[%emt 0:01:52]} 22. a4 {[%emt 0:03:23]} a6 {[%emt 0:02:32]} 23. axb5 {[%emt 0:03:01]} axb5 {[%emt 0:00:01]} 24. Ne2 {[%emt 0:03:47]} Qd6 {[%emt 0:08:04]} 25. Qb3 {[%emt 0:03:41]} Qb6 {[%emt 0:00:54]} 26. Ra2 {[%emt 0:04:48]} f5 {[%emt 0:02:29]} 27. Rfa1 {[%emt 0:02:56]} Bf7 {[%emt 0:00:29]} 28. Ra7 {[%emt 0:01:51]} e6 {[%emt 0:03:34]} 29. Bf4 {[%emt 0:03:48]} e5 {[%emt 0:01:57]} 30. dxe5 {[%emt 0:02:02]} Bxe5 {[%emt 0:01:22]} 31. Bxe5 {[%emt 0:03:44]} Nxe5 {[%emt 0:00:02]} 32. Qe3 {[%emt 0:01:47]} Qf6 {[%emt 0:02:35]} 33. Rc1 {[%emt 0:01:27]} Nc4 {[%emt 0:00:13]} 34. Qd4 {[%emt 0:02:36]} Qd8 {[%emt 0:02:31]} 35. Nf4 {[%emt 0:01:52]} g5 {[%emt 0:00:22]} 36. Nd3 {[%emt 0:07:50]} Qd6 {[%emt 0:10:40]} 37. Re1 {[%emt 0:01:57]} Rd8 {[%emt 0:02:52]} 38. Qc5 {[%emt 0:02:55]} Qxc5 {[%emt 0:01:31]} 39. Nxc5 {[%emt 0:00:22]} Ne8 {[%emt 0:00:46]} 40. Ree7 {[%emt 0:02:17]} Ned6 {[%emt 0:00:37]} 41. Ne6 {[%emt 0:05:09]} Bxe6 {[%emt 0:00:07]} 42. Rxe6 {[%emt 0:00:52]} Nc8 {[%emt 0:00:38]} 43. Ra8 {[%emt 0:02:39]} d4 {[%emt 0:01:14]} 44. Rc6 {[%emt 0:02:26]} N4d6 {[%emt 0:00:03]} 45. Bf1 {[%emt 0:05:07]} Kf7 {[%emt 0:00:30]} 46. Be2 {[%emt 0:02:08]} Ke7 {[%emt 0:00:17]} 47. Rc7+ {[%emt 0:02:16]} Kf6 {[%emt 0:03:07]} 48. Rxh7 {[%emt 0:01:23]} Re8 {[%emt 0:00:12]} 49. Bf3 {[%emt 0:02:25]} Re1 {[%emt 0:00:49]} 50. Ra6 {[%emt 0:01:19]} d3 {[%emt 0:00:34]} 51. Ra3 {[%emt 0:04:29]} g4 {[%emt 0:02:51]} 52. hxg4 {[%emt 0:01:12]} fxg4 {[%emt 0:00:02]} 53. Bxg4 {[%emt 0:00:45]} d2 {[%emt 0:01:59]} 54. Rd3 {[%emt 0:01:07]} Ne4 {[%emt 0:00:32]} 55. Kg2 {[%emt 0:02:42]} Ncd6 {[%emt 0:04:06]} 56. Bf3 {[%emt 0:00:52]} Nc4 {[%emt 0:00:49]} 57. Rhd7 {[%emt 0:00:32]} Ne5 {[%emt 0:06:38]} 58. R7d6+ {[%emt 0:01:08]} Nxd6 {[%emt 0:00:13]} 59. Rxd6+ {[%emt 0:00:10]} Ke7 {[%emt 0:00:27]} 60. Rxd2 {[%emt 0:00:11]} Rb1 {[%emt 0:01:26]} 61. Rd4 {[%emt 0:01:44]} Nc4 {[%emt 0:01:39]} 62. Re4+ {[%emt 0:00:51]} Kd6 {[%emt 0:00:15]} 63. Rd4+ {[%emt 0:00:19]} Kc7 {[%emt 0:00:24]} 64. Be2 {[%emt 0:00:25]} Rxb4 {[%emt 0:00:08]} 65. Bxc4 {[%emt 0:00:06]} bxc4 {[%emt 0:00:11]} 66. Rd2 {[%emt 0:00:46]} Kc6 {[%emt 0:00:07]} 67. g4 {[%emt 0:00:07]} Kc5 {[%emt 0:00:06]} 68. g5 {[%emt 0:00:02]} c3 {[%emt 0:00:17]} 69. Rc2 {[%emt 0:00:28]} Kd4 {[%emt 0:00:21]} 70. f4 {[%emt 0:00:12]} Rb2 {[%emt 0:00:11]} 71. Kf3 {[%emt 0:02:08]} Rxc2 {[%emt 0:00:07]} 72. g6 {[%emt 0:00:03]} Rb2 {[%emt 0:00:22]} 0-1

[Event "FIN-ch Seniors 65 2020"]
[Site "Helsinki"]
[Date "2020.09.26"]
[Round "4.3"]
[White "Virtanen, Esko"]
[Black "Terasalo, Kari"]
[Result "0-1"]
[ECO "D07"]
[WhiteElo "1739"]
[BlackElo "1782"]
[Annotator "NA"]
[PlyCount "92"]
[EventDate "2020.09.24"]
[EventType "swiss"]
[EventCountry "FIN"]
[SourceTitle "playchess.com"]
[Source "ChessBase"]
[SourceQuality "1"]
[TimeControl "40/5400+30:1800+30"]

1. Nf3 {[%emt 0:00:00]} d5 {[%emt 0:00:00]} 2. d4 {[%emt 0:00:00]} Nc6 {[%emt 0:00:10]} 3. c4 {[%emt 0:00:00]} Nf6 {[%emt 0:00:35]} 4. Nc3 {[%emt 0:00:00]} e6 {[%emt 0:00:59]} 5. Bf4 {[%emt 0:00:31]} a6 {[%emt 0:01:05]} 6. e3 {[%emt 0:00:35]} Be7 {[%emt 0:00:53]} 7. Rc1 {[%emt 0:01:09]} O-O {[%emt 0:00:21]} 8. Be2 {[%emt 0:02:02]} h6 {[%emt 0:01:35]} 9. h3 {[%emt 0:00:15]} dxc4 {[%emt 0:05:04]} 10. Bxc4 {[%emt 0:00:15]} Nd5 {[%emt 0:00:14]} 11. Nxd5 {[%emt 0:00:37]} exd5 {[%emt 0:00:12]} 12. Bb3 {[%emt 0:00:16]} Bd6 {[%emt 0:03:15]} 13. Bxd6 {[%emt 0:00:13]} Qxd6 {[%emt 0:00:04]} 14. O-O {[%emt 0:00:20]} Bf5 {[%emt 0:01:53]} 15. a3 {[%emt 0:02:05]} Rad8 {[%emt 0:01:05]} 16. Bc2 {[%emt 0:00:46]} Bxc2 {[%emt 0:07:49]} 17. Qxc2 {[%emt 0:02:46]} Rd7 {[%emt 0:00:12]} 18. Qc5 {[%emt 0:01:43]} Qf6 {[%emt 0:02:42]} 19. b4 {[%emt 0:00:53]} Rd6 {[%emt 0:02:41]} 20. a4 {[%emt 0:13:18]} Qg6 {[%emt 0:01:32]} 21. b5 {[%emt 0:00:21]} b6 {[%emt 0:09:30]} 22. Qc3 {[%emt 1:12:55]} axb5 {[%emt 0:03:08]} 23. axb5 {[%emt 0:00:00]} Rf6 {[%emt 0:03:34]} 24. Kh2 {[%emt 0:00:00]} Ne7 {[%emt 0:02:18]} 25. Qxc7 {[%emt 0:00:00]} Qe4 {[%emt 0:02:17]} 26. Qc2 {[%emt 0:00:00]} Qe6 {[%emt 0:01:10]} 27. Ne5 {[%emt 0:00:00]} Ng6 {[%emt 0:01:15]} 28. Qc7 {[%emt 0:00:00]} Nxe5 {[%emt 0:03:09]} 29. dxe5 {[%emt 0:00:00]} Rg6 {[%emt 0:08:50]} 30. Rc6 {[%emt 0:00:00]} Qf5 {[%emt 0:00:47]} 31. Rxb6 {[%emt 0:00:00]} Rxb6 {[%emt 0:01:25]} 32. Qxb6 {[%emt 0:00:00]} Qxe5+ {[%emt 0:00:10]} 33. g3 {[%emt 0:00:00]} Re8 {[%emt 0:06:19]} 34. Rd1 {[%emt 0:00:00]} Qb2 {[%emt 0:02:20]} 35. Kg1 {[%emt 0:00:00]} Re6 {[%emt 0:12:28]} 36. Qd8+ {[%emt 0:00:00]} Kh7 {[%emt 0:00:21]} 37. Qxd5 {[%emt 0:00:00]} Rf6 {[%emt 0:01:29]} 38. Rd2 {[%emt 0:00:00]} Qb1+ {[%emt 0:02:32]} 39. Kg2 {[%emt 0:00:00]} Qa1 {[%emt 0:02:20]} 40. Qe4+ {[%emt 0:00:00]} g6 {[%emt 0:00:38]} 41. Qd4 {[%emt 0:00:00]} Qa8+ {[%emt 0:30:57]} 42. Kg1 {[%emt 0:00:00]} Rf5 {[%emt 0:03:15]} 43. b6 {[%emt 0:00:00]} Rb5 {[%emt 0:02:38]} 44. Rb2 {[%emt 0:00:55]} Qa1+ {[%emt 0:00:40]} 45. Kg2 {[%emt 0:00:26]} Qxb2 {[%emt 0:00:18]} 46. Qc4 {[%emt 0:00:10]} Rf5 {[%emt 0:01:45]} 0-1

[Event "FIN-ch Seniors 65 2020"]
[Site "Helsinki"]
[Date "2020.09.26"]
[Round "4.4"]
[White "Tiensuu, Seppo"]
[Black "Jarnstrom, Henrik"]
[Result "1-0"]
[ECO "B02"]
[WhiteElo "1412"]
[BlackElo "1696"]
[Annotator "NA"]
[PlyCount "59"]
[EventDate "2020.09.24"]
[EventType "swiss"]
[EventCountry "FIN"]
[SourceTitle "playchess.com"]
[Source "ChessBase"]
[SourceQuality "1"]
[TimeControl "40/5400+30:1800+30"]

1. e4 {[%emt 0:01:55]} Nf6 {[%emt 0:00:00]} 2. Nc3 {[%emt 0:00:15]} d5 {[%emt 0:00:07]} 3. Nxd5 {[%emt 0:05:50]} Nxd5 {[%emt 0:00:09]} 4. exd5 {[%emt 0:00:23]} Qxd5 {[%emt 0:00:04]} 5. d4 {[%emt 0:01:51]} Nc6 {[%emt 0:00:23]} 6. Nf3 {[%emt 0:03:13]} Bg4 {[%emt 0:00:19]} 7. c4 {[%emt 0:01:11]} Qe4+ {[%emt 0:00:39]} 8. Be3 {[%emt 0:01:47]} Bxf3 {[%emt 0:05:41]} 9. gxf3 {[%emt 0:00:20]} Qg6 {[%emt 0:00:20]} 10. h4 {[%emt 0:02:53]} e6 {[%emt 0:00:54]} 11. a3 {[%emt 0:01:43]} f5 {[%emt 0:00:59]} 12. d5 {[%emt 0:04:31]} O-O-O {[%emt 0:00:34]} 13. Qa4 {[%emt 0:02:01]} exd5 {[%emt 0:00:30]} 14. O-O-O {[%emt 0:00:57]} d4 {[%emt 0:00:49]} 15. Bg5 {[%emt 0:01:31]} Rd7 {[%emt 0:00:57]} 16. Bh3 {[%emt 0:06:40]} Kb8 {[%emt 0:04:05]} 17. Qb5 {[%emt 0:02:55]} Rf7 {[%emt 0:00:51]} 18. Rhe1 {[%emt 0:00:44]} a6 {[%emt 0:04:13]} 19. Re8+ {[%emt 0:03:36]} Ka7 {[%emt 0:00:21]} 20. Qd5 {[%emt 0:00:43]} f4 {[%emt 0:03:51]} 21. Re6 {[%emt 0:01:15]} Rf6 {[%emt 0:02:38]} 22. Bxf6 {[%emt 0:01:20]} gxf6 {[%emt 0:00:12]} 23. b4 {[%emt 0:03:31]} Bd6 {[%emt 0:00:50]} 24. c5 {[%emt 0:12:01]} Be5 {[%emt 0:00:39]} 25. Rxc6 {[%emt 0:02:14]} bxc6 {[%emt 0:00:29]} 26. Qxc6 {[%emt 0:00:09]} f5 {[%emt 0:00:35]} 27. Qa4 {[%emt 0:01:11]} Kb7 {[%emt 0:01:55]} 28. b5 {[%emt 0:03:28]} axb5 {[%emt 0:01:59]} 29. Qxb5+ {[%emt 0:00:12]} Ka7 {[%emt 0:00:58]} 30. c6 {[%emt 0:00:22]} 1-0

[Event "FIN-ch Seniors 65 2020"]
[Site "Helsinki"]
[Date "2020.09.26"]
[Round "4.5"]
[White "Karppinen, Martti"]
[Black "Saharinen, Petri"]
[Result "0-1"]
[ECO "A15"]
[WhiteElo "1878"]
[BlackElo "1720"]
[Annotator "NA"]
[PlyCount "94"]
[EventDate "2020.09.24"]
[EventType "swiss"]
[EventCountry "FIN"]
[SourceTitle "playchess.com"]
[Source "ChessBase"]
[SourceQuality "1"]
[TimeControl "40/5400+30:1800+30"]

1. c4 {[%emt 0:00:24]} Nf6 {[%emt 0:00:00]} 2. g3 {[%emt 0:00:16]} e6 {[%emt 0:00:18]} 3. Bg2 {[%emt 0:00:21]} d5 {[%emt 0:00:12]} 4. d3 {[%emt 0:01:38]} Bb4+ {[%emt 0:00:59]} 5. Bd2 {[%emt 0:00:30]} Bxd2+ {[%emt 0:00:38]} 6. Nxd2 {[%emt 0:00:18]} O-O {[%emt 0:00:10]} 7. Qc2 {[%emt 0:06:23]} c5 {[%emt 0:00:49]} 8. Ngf3 {[%emt 0:05:08]} Nc6 {[%emt 0:00:10]} 9. O-O {[%emt 0:01:27]} Qe7 {[%emt 0:01:27]} 10. Rfe1 {[%emt 0:01:13]} Bd7 {[%emt 0:05:18]} 11. a3 {[%emt 0:06:28]} Rac8 {[%emt 0:02:35]} 12. e3 {[%emt 0:03:03]} Qd6 {[%emt 0:02:57]} 13. e4 {[%emt 0:03:52]} dxe4 {[%emt 0:01:45]} 14. Nxe4 {[%emt 0:07:37]} Nxe4 {[%emt 0:01:05]} 15. dxe4 {[%emt 0:01:25]} e5 {[%emt 0:00:58]} 16. Rad1 {[%emt 0:14:53]} Nd4 {[%emt 0:00:13]} 17. Nxd4 {[%emt 0:04:59]} cxd4 {[%emt 0:00:22]} 18. Qd3 {[%emt 0:01:40]} a5 {[%emt 0:02:41]} 19. Rc1 {[%emt 0:01:41]} Be6 {[%emt 0:01:56]} 20. Bf1 {[%emt 0:02:59]} f5 {[%emt 0:01:35]} 21. exf5 {[%emt 0:02:11]} Bxf5 {[%emt 0:00:17]} 22. Qb3 {[%emt 0:00:15]} Rc5 {[%emt 0:15:10]} 23. Bg2 {[%emt 0:10:48]} b6 {[%emt 0:07:06]} 24. Rcd1 {[%emt 0:03:31]} Qf6 {[%emt 0:03:43]} 25. Bd5+ {[%emt 0:01:04]} Kh8 {[%emt 0:00:56]} 26. f3 {[%emt 0:04:29]} g5 {[%emt 0:00:13]} 27. g4 {[%emt 0:01:58]} Bg6 {[%emt 0:02:42]} 28. Kg2 {[%emt 0:01:05]} h5 {[%emt 0:00:29]} 29. Rf1 {[%emt 0:00:50]} h4 {[%emt 0:00:39]} 30. Be4 {[%emt 0:03:33]} Bf7 {[%emt 0:03:49]} 31. Bd5 {[%emt 0:01:30]} b5 {[%emt 0:01:01]} 32. Bxf7 {[%emt 0:01:01]} Qxf7 {[%emt 0:00:15]} 33. Qd3 {[%emt 0:02:13]} bxc4 {[%emt 0:00:22]} 34. Qc2 {[%emt 0:02:39]} c3 {[%emt 0:06:30]} 35. bxc3 {[%emt 0:01:26]} Rxc3 {[%emt 0:00:18]} 36. Qe4 {[%emt 0:00:32]} Re3 {[%emt 0:02:22]} 37. Qc6 {[%emt 0:00:11]} Re2+ {[%emt 0:00:50]} 38. Rf2 {[%emt 0:01:34]} Rxf2+ {[%emt 0:04:37]} 39. Kxf2 {[%emt 0:00:03]} Kg7 {[%emt 0:00:29]} 40. Qc1 {[%emt 0:01:29]} Qxf3+ {[%emt 0:00:30]} 41. Kg1 {[%emt 0:30:21]} Qxg4+ {[%emt 0:30:44]} 42. Kh1 {[%emt 0:00:06]} Qf3+ {[%emt 0:03:44]} 43. Kg1 {[%emt 0:00:08]} Kh6 {[%emt 0:02:33]} 44. Qb1 {[%emt 0:00:00]} Qf2+ {[%emt 0:00:00]} 45. Kh1 {[%emt 0:00:00]} h3 {[%emt 0:00:00]} 46. Qb6+ {[%emt 0:00:00]} Kh5 {[%emt 0:00:00]} 47. Qb7 {[%emt 0:00:00]} Qf1+ {[%emt 0:00:00]} 0-1

[Event "FIN-ch Seniors 65 2020"]
[Site "Helsinki"]
[Date "2020.09.26"]
[Round "5.1"]
[White "Auvinen, Esa"]
[Black "Terasalo, Kari"]
[Result "1-0"]
[ECO "B44"]
[WhiteElo "1809"]
[BlackElo "1782"]
[Annotator "NA"]
[PlyCount "89"]
[EventDate "2020.09.24"]
[EventType "swiss"]
[EventCountry "FIN"]
[SourceTitle "playchess.com"]
[Source "ChessBase"]
[SourceQuality "1"]
[TimeControl "40/5400+30:1800+30"]

1. e4 {[%emt 0:00:00]} c5 {[%emt 0:00:00]} 2. Nf3 {[%emt 0:00:00]} Nc6 {[%emt 0:00:00]} 3. d4 {[%emt 0:00:00]} cxd4 {[%emt 0:00:08]} 4. Nxd4 {[%emt 0:00:00]} e6 {[%emt 0:00:42]} 5. Nb5 {[%emt 0:00:37]} d6 {[%emt 0:02:20]} 6. Bf4 {[%emt 0:00:07]} e5 {[%emt 0:00:45]} 7. Bg5 {[%emt 0:00:04]} Qd7 {[%emt 0:04:21]} 8. Bc4 {[%emt 0:01:33]} a6 {[%emt 0:02:50]} 9. N5c3 {[%emt 0:00:11]} h6 {[%emt 0:10:17]} 10. Be3 {[%emt 0:04:40]} Nf6 {[%emt 0:02:20]} 11. Na4 {[%emt 0:00:27]} Rb8 {[%emt 0:02:21]} 12. Nb6 {[%emt 0:00:30]} Qc7 {[%emt 0:03:08]} 13. Nc3 {[%emt 0:01:15]} Bg4 {[%emt 0:12:20]} 14. f3 {[%emt 0:01:37]} Bh5 {[%emt 0:01:17]} 15. Qd2 {[%emt 0:07:08]} Na5 {[%emt 0:09:26]} 16. Ncd5 {[%emt 0:09:11]} Nxd5 {[%emt 0:00:45]} 17. Bxd5 {[%emt 0:00:29]} Nc6 {[%emt 0:00:46]} 18. Bb3 {[%emt 0:00:46]} Be7 {[%emt 0:10:12]} 19. Rd1 {[%emt 0:04:32]} O-O {[%emt 0:03:06]} 20. Nd5 {[%emt 0:00:42]} Qd7 {[%emt 0:02:08]} 21. Nxe7+ {[%emt 0:00:26]} Qxe7 {[%emt 0:00:57]} 22. Qxd6 {[%emt 0:00:17]} Qh4+ {[%emt 0:01:09]} 23. Bf2 {[%emt 0:00:41]} Qg5 {[%emt 0:00:27]} 24. Rg1 {[%emt 0:07:25]} Rbd8 {[%emt 0:02:49]} 25. Qc5 {[%emt 0:02:13]} Rxd1+ {[%emt 0:01:41]} 26. Kxd1 {[%emt 0:00:06]} Rd8+ {[%emt 0:00:42]} 27. Bd5 {[%emt 0:00:06]} Qf4 {[%emt 0:06:20]} 28. h3 {[%emt 0:12:16]} Qxe4 {[%emt 0:00:25]} 29. c4 {[%emt 0:02:07]} Qb1+ {[%emt 0:00:50]} 30. Ke2 {[%emt 0:01:29]} Qxb2+ {[%emt 0:00:32]} 31. Kf1 {[%emt 0:03:42]} Bg6 {[%emt 0:01:52]} 32. g4 {[%emt 0:02:14]} Qxa2 {[%emt 0:01:54]} 33. Kg2 {[%emt 0:06:09]} Qc2 {[%emt 0:05:18]} 34. Qb6 {[%emt 0:02:33]} Rd7 {[%emt 0:01:32]} 35. Kg3 {[%emt 0:06:09]} Qd2 {[%emt 0:03:02]} 36. Be3 {[%emt 0:04:09]} Qd3 {[%emt 0:00:50]} 37. Re1 {[%emt 0:05:20]} Rd6 {[%emt 0:01:43]} 38. Qxb7 {[%emt 0:02:13]} Nd4 {[%emt 0:01:23]} 39. Qb8+ {[%emt 0:03:28]} Kh7 {[%emt 0:00:29]} 40. Qxd6 {[%emt 0:00:14]} Ne2+ {[%emt 0:01:10]} 41. Kf2 {[%emt 0:31:22]} Nc3 {[%emt 0:31:05]} 42. Qxe5 {[%emt 0:01:43]} Qc2+ {[%emt 0:01:31]} 43. Kg3 {[%emt 0:01:24]} Ne2+ {[%emt 0:04:00]} 44. Rxe2 {[%emt 0:00:48]} Qxe2 {[%emt 0:00:12]} 45. Bd4 {[%emt 0:00:10]} 1-0

[Event "FIN-ch Seniors 65 2020"]
[Site "Helsinki"]
[Date "2020.09.26"]
[Round "5.2"]
[White "Patola, Eero"]
[Black "Koskinen, Hannu E."]
[Result "1/2-1/2"]
[ECO "A24"]
[WhiteElo "1826"]
[BlackElo "1753"]
[Annotator "NA"]
[PlyCount "38"]
[EventDate "2020.09.24"]
[EventType "swiss"]
[EventCountry "FIN"]
[SourceTitle "playchess.com"]
[Source "ChessBase"]
[SourceQuality "1"]
[TimeControl "40/5400+30:1800+30"]

1. e4 {[%emt 0:00:00]} d6 {[%emt 0:00:00]} 2. c4 {[%emt 0:00:38]} Nf6 {[%emt 0:00:00]} 3. Nc3 {[%emt 0:00:13]} g6 {[%emt 0:00:00]} 4. g3 {[%emt 0:00:09]} Bg7 {[%emt 0:00:00]} 5. Bg2 {[%emt 0:00:30]} O-O {[%emt 0:00:00]} 6. Nge2 {[%emt 0:00:22]} e5 {[%emt 0:00:00]} 7. d3 {[%emt 0:00:18]} a5 {[%emt 0:02:59]} 8. O-O {[%emt 0:00:39]} Na6 {[%emt 0:00:27]} 9. f4 {[%emt 0:02:11]} c6 {[%emt 0:04:05]} 10. h3 {[%emt 0:01:00]} exf4 {[%emt 0:06:36]} 11. gxf4 {[%emt 0:02:38]} Nh5 {[%emt 0:02:56]} 12. Be3 {[%emt 0:01:17]} Nc7 {[%emt 0:05:22]} 13. Rb1 {[%emt 0:03:43]} f5 {[%emt 0:04:25]} 14. Kh2 {[%emt 0:01:06]} Qe7 {[%emt 0:05:26]} 15. Bf3 {[%emt 0:04:59]} Nf6 {[%emt 0:00:45]} 16. Bf2 {[%emt 0:01:19]} Re8 {[%emt 0:05:30]} 17. Ng3 {[%emt 0:05:18]} Qf7 {[%emt 0:08:57]} 18. Bg2 {[%emt 0:06:14]} Kh8 {[%emt 0:01:48]} 19. Qc2 {[%emt 0:06:58]} Be6 {[%emt 0:06:08]} 1/2-1/2

[Event "FIN-ch Seniors 65 2020"]
[Site "Helsinki"]
[Date "2020.09.26"]
[Round "5.3"]
[White "Tiensuu, Seppo"]
[Black "Karppinen, Martti"]
[Result "0-1"]
[ECO "B50"]
[WhiteElo "1412"]
[BlackElo "1878"]
[Annotator "NA"]
[PlyCount "133"]
[EventDate "2020.09.24"]
[EventType "swiss"]
[EventCountry "FIN"]
[SourceTitle "playchess.com"]
[Source "ChessBase"]
[SourceQuality "1"]
[TimeControl "40/5400+30:1800+30"]

1. e4 {[%emt 0:00:00]} c5 {[%emt 0:00:07]} 2. Nf3 {[%emt 0:00:00]} Nc6 {[%emt 0:00:13]} 3. Bc4 {[%emt 0:02:19]} d6 {[%emt 0:02:41]} 4. O-O {[%emt 0:02:06]} Nf6 {[%emt 0:00:36]} 5. Re1 {[%emt 0:00:39]} a6 {[%emt 0:04:29]} 6. a4 {[%emt 0:00:44]} Bg4 {[%emt 0:01:57]} 7. c3 {[%emt 0:00:35]} Qa5 {[%emt 0:02:59]} 8. d3 {[%emt 0:04:26]} Bxf3 {[%emt 0:14:10]} 9. Qxf3 {[%emt 0:00:17]} Ne5 {[%emt 0:01:14]} 10. Qh3 {[%emt 0:06:21]} b5 {[%emt 0:08:00]} 11. Bd5 {[%emt 0:08:44]} Nxd5 {[%emt 0:03:00]} 12. exd5 {[%emt 0:00:12]} c4 {[%emt 0:05:40]} 13. dxc4 {[%emt 0:05:06]} bxc4 {[%emt 0:01:36]} 14. Nd2 {[%emt 0:03:11]} Qc7 {[%emt 0:01:10]} 15. Re4 {[%emt 0:01:40]} a5 {[%emt 0:06:42]} 16. f4 {[%emt 0:00:34]} Qc5+ {[%emt 0:03:29]} 17. Rd4 {[%emt 0:03:15]} Nd3 {[%emt 0:01:20]} 18. Nxc4 {[%emt 0:00:39]} Nxc1 {[%emt 0:02:01]} 19. Rxc1 {[%emt 0:00:13]} g6 {[%emt 0:00:50]} 20. Nxd6+ {[%emt 0:06:05]} Qxd6 {[%emt 0:00:59]} 21. Rc4 {[%emt 0:00:39]} f5 {[%emt 0:02:03]} 22. Qf3 {[%emt 0:03:32]} Bh6 {[%emt 0:03:19]} 23. g3 {[%emt 0:03:33]} Qb6+ {[%emt 0:01:13]} 24. Kf1 {[%emt 0:01:33]} O-O {[%emt 0:01:24]} 25. Qe2 {[%emt 0:02:05]} Rfe8 {[%emt 0:01:45]} 26. Rc6 {[%emt 0:06:16]} Qb3 {[%emt 0:01:33]} 27. Qb5 {[%emt 0:12:16]} Rab8 {[%emt 0:05:58]} 28. Rb6 {[%emt 0:02:36]} Qxb5+ {[%emt 0:02:38]} 29. Rxb5 {[%emt 0:00:15]} Kf7 {[%emt 0:03:48]} 30. Rc2 {[%emt 0:00:48]} Rxb5 {[%emt 0:01:10]} 31. axb5 {[%emt 0:00:15]} Bg7 {[%emt 0:00:22]} 32. b3 {[%emt 0:00:51]} Rc8 {[%emt 0:00:22]} 33. c4 {[%emt 0:00:13]} Bd4 {[%emt 0:00:17]} 34. Ke2 {[%emt 0:01:55]} Ke8 {[%emt 0:01:29]} 35. Kd3 {[%emt 0:01:01]} Bc5 {[%emt 0:00:15]} 36. Ra2 {[%emt 0:00:48]} Ra8 {[%emt 0:01:37]} 37. Kc3 {[%emt 0:05:19]} Ra7 {[%emt 0:00:48]} 38. Kd3 {[%emt 0:01:15]} Kd7 {[%emt 0:00:16]} 39. Ra4 {[%emt 0:03:32]} e6 {[%emt 0:01:18]} 40. dxe6+ {[%emt 0:00:42]} Kxe6 {[%emt 0:00:10]} 41. Ra2 {[%emt 0:30:15]} Rd7+ {[%emt 0:30:27]} 42. Ke2 {[%emt 0:00:42]} Bb4 {[%emt 0:01:07]} 43. Rc2 {[%emt 0:01:27]} Kd6 {[%emt 0:01:52]} 44. Kf3 {[%emt 0:00:42]} Kc5 {[%emt 0:00:13]} 45. Ke2 {[%emt 0:01:06]} Re7+ {[%emt 0:00:36]} 46. Kd3 {[%emt 0:00:29]} Re1 {[%emt 0:01:07]} 47. Ra2 {[%emt 0:01:06]} Rb1 {[%emt 0:00:39]} 48. Kc2 {[%emt 0:00:16]} Rf1 {[%emt 0:13:01]} 49. Kd3 {[%emt 0:11:57]} Rf3+ {[%emt 0:00:00]} 50. Kc2 {[%emt 0:00:00]} Rf2+ {[%emt 0:00:00]} 51. Kb1 {[%emt 0:00:00]} Rxa2 {[%emt 0:00:00]} 52. Kxa2 {[%emt 0:00:00]} Kb6 {[%emt 0:00:00]} 53. Kb2 {[%emt 0:00:00]} Bc5 {[%emt 0:00:00]} 54. Kc3 {[%emt 0:00:00]} h5 {[%emt 0:00:00]} 55. h3 {[%emt 0:00:00]} Bf2 {[%emt 0:00:00]} 56. g4 {[%emt 0:00:00]} hxg4 {[%emt 0:00:07]} 57. hxg4 {[%emt 0:00:00]} fxg4 {[%emt 0:00:09]} 58. Kd3 {[%emt 0:00:00]} Kc5 {[%emt 0:01:10]} 59. Ke2 {[%emt 0:00:00]} Bg1 {[%emt 0:00:16]} 60. Kf1 {[%emt 0:00:00]} Be3 {[%emt 0:00:11]} 61. Kg2 {[%emt 0:00:00]} Bxf4 {[%emt 0:00:07]} 62. Kf2 {[%emt 0:00:00]} Bc7 {[%emt 0:00:11]} 63. Kg2 {[%emt 0:00:00]} Kb4 {[%emt 0:00:09]} 64. Kf1 {[%emt 0:00:00]} Bb6 {[%emt 0:00:23]} 65. Kg2 {[%emt 0:00:00]} Kxb3 {[%emt 0:00:12]} 66. c5 {[%emt 0:08:30]} Bc7 67. b6 0-1